[Event "Early-Titled-Tuesday-Blitz-September-05-2023"]
[Site "Chess.com"]
[Date "2023.09.05"]
[Round "10"]
[White "Gyulamiryan-koryun"]
[Black "buenamor1972"]
[Result "1-0"]
[WhiteElo "2059"]
[BlackElo "2307"]
[TimeControl "180+1"]
[EndTime "9:54:15 PDT"]
[Termination "Gyulamiryan-koryun won by resignation"]

1. e4 {[%clk 0:02:59.2]} 1... e5 {[%clk 0:02:59.4]} 2. Nf3 {[%clk 0:02:59]} 2...
Nc6 {[%clk 0:02:59.9]} 3. Bc4 {[%clk 0:02:59.2]} 3... Nf6 {[%clk 0:02:59.1]} 4.
Ng5 {[%clk 0:02:59.7]} 4... d5 {[%clk 0:02:58.7]} 5. exd5 {[%clk 0:03:00.6]}
5... Na5 {[%clk 0:02:59.1]} 6. Bb5+ {[%clk 0:03:01.3]} 6... c6 {[%clk
0:02:59.5]} 7. dxc6 {[%clk 0:03:02.2]} 7... bxc6 {[%clk 0:03:00.2]} 8. Bd3
{[%clk 0:03:02.8]} 8... Ng4 {[%clk 0:02:59.7]} 9. Nf3 {[%clk 0:02:58.3]} 9... f5
{[%clk 0:02:58.1]} 10. h3 {[%clk 0:02:18.2]} 10... Nxf2 {[%clk 0:02:57.9]} 11.
Kxf2 {[%clk 0:02:15.4]} 11... e4 {[%clk 0:02:58.3]} 12. Re1 {[%clk 0:02:08.5]}
12... Bc5+ {[%clk 0:02:58.2]} 13. Kf1 {[%clk 0:02:05.3]} 13... O-O {[%clk
0:02:55]} 14. Bxe4 {[%clk 0:02:03.7]} 14... fxe4 {[%clk 0:02:53.1]} 15. Rxe4
{[%clk 0:02:04.6]} 15... Qf6 {[%clk 0:02:14.3]} 16. d4 {[%clk 0:01:56.8]} 16...
Bf5 {[%clk 0:02:08.2]} 17. Bg5 {[%clk 0:01:39.2]} 17... Qd6 {[%clk 0:01:59.6]}
18. Be7 {[%clk 0:01:32.2]} 18... Qd5 {[%clk 0:01:45.2]} 19. Bxf8 {[%clk
0:00:47.9]} 19... Rxf8 {[%clk 0:01:27.8]} 20. Nc3 {[%clk 0:00:43.2]} 20... Qc4+
{[%clk 0:01:23.4]} 21. Re2 {[%clk 0:00:39.6]} 21... Bb6 {[%clk 0:01:18.5]} 22.
Kg1 {[%clk 0:00:16.6]} 22... Bxh3 {[%clk 0:01:17.8]} 23. gxh3 {[%clk 0:00:15.4]}
23... Rxf3 {[%clk 0:01:17.1]} 24. Re8+ {[%clk 0:00:16]} 24... Rf8 {[%clk
0:01:15.9]} 25. Rxf8+ {[%clk 0:00:15.3]} 25... Kxf8 {[%clk 0:01:16.5]} 26. Qf3+
{[%clk 0:00:15.4]} 26... Kg8 {[%clk 0:01:16.7]} 27. Rf1 {[%clk 0:00:15.5]} 27...
Bxd4+ {[%clk 0:01:14.1]} 28. Kg2 {[%clk 0:00:16]} 28... Bf6 {[%clk 0:01:13.7]}
29. Ne4 {[%clk 0:00:15.9]} 29... Qe6 {[%clk 0:00:46.1]} 30. Nxf6+ {[%clk
0:00:15.4]} 30... gxf6 {[%clk 0:00:46.2]} 31. Qxf6 {[%clk 0:00:14.1]} 31... Qxf6
{[%clk 0:00:46.6]} 32. Rxf6 {[%clk 0:00:13.9]} 32... Kg7 {[%clk 0:00:47.1]} 33.
Rd6 {[%clk 0:00:14]} 33... a6 {[%clk 0:00:44.1]} 34. Rd7+ {[%clk 0:00:13.9]}
34... Kg6 {[%clk 0:00:44.1]} 35. Ra7 {[%clk 0:00:14.4]} 35... Nc4 {[%clk
0:00:43.6]} 36. Rxa6 {[%clk 0:00:11.6]} 36... Ne5 {[%clk 0:00:42.5]} 37. Kg3
{[%clk 0:00:11.1]} 37... Kf5 {[%clk 0:00:40.6]} 38. h4 {[%clk 0:00:09.9]} 38...
h5 {[%clk 0:00:40.4]} 39. Ra5 {[%clk 0:00:09.9]} 39... Ke4 {[%clk 0:00:39.2]}
40. Rxe5+ {[%clk 0:00:10.3]} 40... Kxe5 {[%clk 0:00:40.1]} 41. Kf3 {[%clk
0:00:09.8]} 41... Kd4 {[%clk 0:00:40.7]} 42. a4 {[%clk 0:00:09.5]} 42... Kc4
{[%clk 0:00:40.4]} 43. Kf4 {[%clk 0:00:09.7]} 43... Kb4 {[%clk 0:00:40.3]} 44.
b3 {[%clk 0:00:10.4]} 44... c5 {[%clk 0:00:40.7]} 45. Kg5 {[%clk 0:00:10.5]}
45... c4 {[%clk 0:00:41.6]} 46. bxc4 {[%clk 0:00:10.9]} 46... Kxa4 {[%clk
0:00:41.8]} 47. Kxh5 {[%clk 0:00:11.8]} 47... Kb4 {[%clk 0:00:42.1]} 48. Kg6
{[%clk 0:00:12.7]} 48... Kxc4 {[%clk 0:00:43]} 49. h5 {[%clk 0:00:13.6]} 49...
Kc3 {[%clk 0:00:43.9]} 50. h6 {[%clk 0:00:14.5]} 50... Kxc2 {[%clk 0:00:44.8]}
51. h7 {[%clk 0:00:15.4]} 51... Kd2 {[%clk 0:00:45.7]} 52. h8=Q {[%clk
0:00:16.3]} 52... Ke3 {[%clk 0:00:46.6]} 53. Qf6 {[%clk 0:00:16.6]} 1-0

[Event "Early-Titled-Tuesday-Blitz-September-05-2023"]
[Site "Chess.com"]
[Date "2023.09.05"]
[Round "10"]
[White "Bilan_Danila"]
[Black "gm_rashid"]
[Result "0-1"]
[WhiteElo "2525"]
[BlackElo "2410"]
[TimeControl "180+1"]
[EndTime "9:54:16 PDT"]
[Termination "gm_rashid won by checkmate"]

1. d4 {[%clk 0:02:55.1]} 1... Nf6 {[%clk 0:02:59.8]} 2. Nf3 {[%clk 0:02:55.4]}
2... g6 {[%clk 0:03:00]} 3. Bg5 {[%clk 0:02:55.8]} 3... Bg7 {[%clk 0:03:00.3]}
4. c3 {[%clk 0:02:56.4]} 4... O-O {[%clk 0:02:59.9]} 5. Nbd2 {[%clk 0:02:56.9]}
5... h6 {[%clk 0:03:00]} 6. Bh4 {[%clk 0:02:56.9]} 6... d6 {[%clk 0:03:00.3]} 7.
e4 {[%clk 0:02:57.2]} 7... Nc6 {[%clk 0:03:00.4]} 8. Bc4 {[%clk 0:02:57.3]} 8...
e5 {[%clk 0:03:00.2]} 9. dxe5 {[%clk 0:02:57.7]} 9... dxe5 {[%clk 0:03:00.7]}
10. Qc2 {[%clk 0:02:58.1]} 10... Qe7 {[%clk 0:02:53.5]} 11. O-O {[%clk
0:02:58.1]} 11... g5 {[%clk 0:02:49.4]} 12. Bg3 {[%clk 0:02:57.9]} 12... Nh5
{[%clk 0:02:49.9]} 13. Rfe1 {[%clk 0:02:58.2]} 13... Nf4 {[%clk 0:02:49.1]} 14.
Nf1 {[%clk 0:02:58.6]} 14... Bg4 {[%clk 0:02:23.6]} 15. Ne3 {[%clk 0:02:58]}
15... Bxf3 {[%clk 0:02:23.2]} 16. gxf3 {[%clk 0:02:58.9]} 16... Qd7 {[%clk
0:02:22.1]} 17. Rad1 {[%clk 0:02:54.8]} 17... Qh3 {[%clk 0:02:21.5]} 18. Bf1
{[%clk 0:02:50.5]} 18... Qh5 {[%clk 0:02:19.1]} 19. Ng4 {[%clk 0:02:35.5]} 19...
Ne7 {[%clk 0:02:01.3]} 20. Rd7 {[%clk 0:02:22]} 20... Neg6 {[%clk 0:01:51.1]}
21. Bxf4 {[%clk 0:01:44.9]} 21... gxf4 {[%clk 0:01:32.5]} 22. Rxc7 {[%clk
0:01:38.3]} 22... Nh4 {[%clk 0:01:25.4]} 23. Bg2 {[%clk 0:01:36.9]} 23... Qg5
{[%clk 0:01:21.9]} 24. Qe2 {[%clk 0:00:41.3]} 24... h5 {[%clk 0:01:14.7]} 25.
Bh3 {[%clk 0:00:39.2]} 25... hxg4 {[%clk 0:01:08.2]} 26. Bxg4 {[%clk 0:00:40.1]}
26... Rad8 {[%clk 0:01:01.1]} 27. Kh1 {[%clk 0:00:35.9]} 27... Rd6 {[%clk
0:00:57.6]} 28. Rxb7 {[%clk 0:00:27.8]} 28... Rfd8 {[%clk 0:00:55.5]} 29. Qc4
{[%clk 0:00:26.9]} 29... Rd1 {[%clk 0:00:39.5]} 30. Qf1 {[%clk 0:00:12]} 30...
R1d2 {[%clk 0:00:26.4]} 31. h3 {[%clk 0:00:08.3]} 31... Qf6 {[%clk 0:00:26]} 32.
Kg1 {[%clk 0:00:04]} 32... Qg5 {[%clk 0:00:24.1]} 33. Kh1 {[%clk 0:00:03.9]}
33... Qf6 {[%clk 0:00:24.3]} 34. Kg1 {[%clk 0:00:04.4]} 34... Qc6 {[%clk
0:00:24.8]} 35. Qb5 {[%clk 0:00:02.6]} 35... Qg6 {[%clk 0:00:21.3]} 36. Rxa7
{[%clk 0:00:02.3]} 36... Nxf3+ {[%clk 0:00:21]} 37. Kf1 {[%clk 0:00:02.9]} 37...
Nxe1 {[%clk 0:00:21.6]} 38. Kxe1 {[%clk 0:00:03.8]} 38... f3 {[%clk 0:00:20.6]}
39. Qc4 {[%clk 0:00:03.3]} 39... Rd1# {[%clk 0:00:20.7]} 0-1

[Event "Early-Titled-Tuesday-Blitz-September-05-2023"]
[Site "Chess.com"]
[Date "2023.09.05"]
[Round "10"]
[White "WildTricks"]
[Black "koncheto"]
[Result "0-1"]
[WhiteElo "2622"]
[BlackElo "2548"]
[TimeControl "180+1"]
[EndTime "9:54:17 PDT"]
[Termination "koncheto won on time"]

1. Nf3 {[%clk 0:03:00.9]} 1... Nf6 {[%clk 0:02:50.4]} 2. g3 {[%clk 0:03:00.3]}
2... b6 {[%clk 0:02:42]} 3. Bg2 {[%clk 0:02:59.7]} 3... Bb7 {[%clk 0:02:42.9]}
4. O-O {[%clk 0:02:59.2]} 4... e6 {[%clk 0:02:41.4]} 5. c4 {[%clk 0:02:58.6]}
5... c5 {[%clk 0:02:41.6]} 6. Nc3 {[%clk 0:02:58.8]} 6... Be7 {[%clk 0:02:40.4]}
7. d4 {[%clk 0:02:58.8]} 7... cxd4 {[%clk 0:02:38.2]} 8. Qxd4 {[%clk 0:02:59.7]}
8... Nc6 {[%clk 0:02:37.5]} 9. Qf4 {[%clk 0:02:55.9]} 9... O-O {[%clk
0:02:35.2]} 10. Rd1 {[%clk 0:02:55.2]} 10... Rc8 {[%clk 0:02:34.4]} 11. b3
{[%clk 0:02:52.6]} 11... Nb4 {[%clk 0:02:23.5]} 12. Bb2 {[%clk 0:02:47.8]} 12...
d5 {[%clk 0:02:20.6]} 13. Rac1 {[%clk 0:02:41.8]} 13... Bd6 {[%clk 0:02:02.5]}
14. Qd2 {[%clk 0:02:35.2]} 14... Qe7 {[%clk 0:01:59.5]} 15. Nb5 {[%clk 0:02:02]}
15... Bb8 {[%clk 0:01:58.9]} 16. Bc3 {[%clk 0:01:16.3]} 16... Na6 {[%clk
0:01:47.6]} 17. Ne5 {[%clk 0:01:10.7]} 17... Nc5 {[%clk 0:01:41.8]} 18. Qb2
{[%clk 0:00:59.1]} 18... Rfd8 {[%clk 0:01:15.9]} 19. a4 {[%clk 0:00:40.9]} 19...
Bxe5 {[%clk 0:00:50]} 20. Bxe5 {[%clk 0:00:39.5]} 20... dxc4 {[%clk 0:00:41.3]}
21. Bxb7 {[%clk 0:00:34.2]} 21... Rxd1+ {[%clk 0:00:18.7]} 22. Rxd1 {[%clk
0:00:33]} 22... Nxb7 {[%clk 0:00:18.8]} 23. Nxa7 {[%clk 0:00:18.1]} 23... Ra8
{[%clk 0:00:16.5]} 24. Nb5 {[%clk 0:00:15.7]} 24... cxb3 {[%clk 0:00:16]} 25.
Qxb3 {[%clk 0:00:16.6]} 25... Nc5 {[%clk 0:00:16.6]} 26. Qf3 {[%clk 0:00:12.4]}
26... Rxa4 {[%clk 0:00:14.5]} 27. Nd6 {[%clk 0:00:07.4]} 27... h6 {[%clk
0:00:11.7]} 28. h4 {[%clk 0:00:07]} 28... Nd5 {[%clk 0:00:08.4]} 29. Nb5 {[%clk
0:00:03.2]} 29... Rb4 {[%clk 0:00:07.3]} 30. Nd4 {[%clk 0:00:02.8]} 30... Ra4
{[%clk 0:00:06.1]} 31. Nb5 {[%clk 0:00:02.6]} 31... Ra8 {[%clk 0:00:05.2]} 32.
Nd4 {[%clk 0:00:01.5]} 32... Rc8 {[%clk 0:00:04.9]} 0-1

[Event "Early-Titled-Tuesday-Blitz-September-05-2023"]
[Site "Chess.com"]
[Date "2023.09.05"]
[Round "10"]
[White "Iskusnyh"]
[Black "DawidCzerw"]
[Result "1-0"]
[WhiteElo "2624"]
[BlackElo "2506"]
[TimeControl "180+1"]
[EndTime "9:54:18 PDT"]
[Termination "Iskusnyh won by checkmate"]

1. d4 {[%clk 0:03:00.9]} 1... Nf6 {[%clk 0:02:59.8]} 2. c4 {[%clk 0:02:59.6]}
2... e6 {[%clk 0:03:00]} 3. g3 {[%clk 0:02:58.8]} 3... d5 {[%clk 0:02:59.7]} 4.
Nf3 {[%clk 0:02:57.8]} 4... dxc4 {[%clk 0:02:59.9]} 5. Bg2 {[%clk 0:02:57.8]}
5... Be7 {[%clk 0:03:00.4]} 6. Qa4+ {[%clk 0:02:53.8]} 6... Nbd7 {[%clk
0:02:59.9]} 7. Qxc4 {[%clk 0:02:50.4]} 7... O-O {[%clk 0:02:59]} 8. O-O {[%clk
0:02:49.3]} 8... a6 {[%clk 0:02:50.8]} 9. Qc2 {[%clk 0:02:45.9]} 9... b5 {[%clk
0:02:41.3]} 10. Ne5 {[%clk 0:02:43.8]} 10... Nxe5 {[%clk 0:02:41.3]} 11. Bxa8
{[%clk 0:02:38.9]} 11... Qxd4 {[%clk 0:02:40.9]} 12. Be3 {[%clk 0:02:26.6]}
12... Qg4 {[%clk 0:02:35.6]} 13. Qxc7 {[%clk 0:02:15.3]} 13... Nfd7 {[%clk
0:02:19.1]} 14. Bf4 {[%clk 0:01:44.1]} 14... Bf6 {[%clk 0:01:46.8]} 15. Nc3
{[%clk 0:01:32.2]} 15... b4 {[%clk 0:01:37.8]} 16. Ne4 {[%clk 0:01:30.7]} 16...
Qxe2 {[%clk 0:01:37.9]} 17. Nxf6+ {[%clk 0:01:29.2]} 17... gxf6 {[%clk
0:01:37.3]} 18. Rad1 {[%clk 0:01:12]} 18... a5 {[%clk 0:00:41.4]} 19. Rfe1
{[%clk 0:01:04.1]} 19... Qxb2 {[%clk 0:00:30]} 20. Bh6 {[%clk 0:01:00.3]} 20...
Ng4 {[%clk 0:00:08.7]} 21. Be3 {[%clk 0:00:35.6]} 21... Nxe3 {[%clk 0:00:06.6]}
22. Rxe3 {[%clk 0:00:35.2]} 22... Ne5 {[%clk 0:00:06.3]} 23. Bg2 {[%clk
0:00:32.1]} 23... Qxa2 {[%clk 0:00:05.2]} 24. h3 {[%clk 0:00:27.2]} 24... a4
{[%clk 0:00:05.3]} 25. Rd8 {[%clk 0:00:26.9]} 25... Ba6 {[%clk 0:00:02.9]} 26.
Rxf8+ {[%clk 0:00:22.5]} 26... Kxf8 {[%clk 0:00:03.8]} 27. Qd6+ {[%clk 0:00:23]}
27... Kg7 {[%clk 0:00:03.5]} 28. Qxa6 {[%clk 0:00:23.9]} 28... Qb1+ {[%clk
0:00:02.8]} 29. Kh2 {[%clk 0:00:23.7]} 29... a3 {[%clk 0:00:03.2]} 30. f4 {[%clk
0:00:22.5]} 30... a2 {[%clk 0:00:02.3]} 31. fxe5 {[%clk 0:00:22.7]} 31... a1=Q
{[%clk 0:00:02.8]} 32. exf6+ {[%clk 0:00:23.6]} 32... Qxf6 {[%clk 0:00:03]} 33.
Rf3 {[%clk 0:00:23.6]} 33... Qfg6 {[%clk 0:00:03.1]} 34. Qa7 {[%clk 0:00:20]}
34... b3 {[%clk 0:00:03.6]} 35. Qd4+ {[%clk 0:00:19.5]} 35... e5 {[%clk
0:00:03.5]} 36. Qxe5+ {[%clk 0:00:19.2]} 36... f6 {[%clk 0:00:03.9]} 37. Qe7+
{[%clk 0:00:19.3]} 37... Kh6 {[%clk 0:00:04.4]} 38. Rxf6 {[%clk 0:00:18.8]}
38... b2 {[%clk 0:00:04.2]} 39. Qf8+ {[%clk 0:00:17.7]} 39... Kh5 {[%clk
0:00:03.8]} 40. Bf3+ {[%clk 0:00:16.7]} 40... Kg5 {[%clk 0:00:04]} 41. h4#
{[%clk 0:00:16.9]} 1-0

[Event "Early-Titled-Tuesday-Blitz-September-05-2023"]
[Site "Chess.com"]
[Date "2023.09.05"]
[Round "10"]
[White "FARIZA2018"]
[Black "Doomfist26"]
[Result "0-1"]
[WhiteElo "2523"]
[BlackElo "2629"]
[TimeControl "180+1"]
[EndTime "9:54:22 PDT"]
[Termination "Doomfist26 won on time"]

1. e4 {[%clk 0:03:00.9]} 1... e6 {[%clk 0:02:59.8]} 2. d4 {[%clk 0:03:00.7]}
2... d5 {[%clk 0:03:00.5]} 3. Nd2 {[%clk 0:03:00.2]} 3... Nc6 {[%clk 0:03:00.9]}
4. Ngf3 {[%clk 0:02:59.5]} 4... Nf6 {[%clk 0:03:01.1]} 5. e5 {[%clk 0:02:59.4]}
5... Nd7 {[%clk 0:03:01.4]} 6. Be2 {[%clk 0:02:58.5]} 6... f6 {[%clk 0:03:01.7]}
7. exf6 {[%clk 0:02:58.7]} 7... Qxf6 {[%clk 0:03:02]} 8. c3 {[%clk 0:02:52.2]}
8... Bd6 {[%clk 0:03:02.2]} 9. O-O {[%clk 0:02:51.7]} 9... O-O {[%clk
0:03:02.1]} 10. Re1 {[%clk 0:02:49.2]} 10... e5 {[%clk 0:03:02.4]} 11. dxe5
{[%clk 0:02:46.8]} 11... Ndxe5 {[%clk 0:03:02.7]} 12. Nf1 {[%clk 0:02:44.4]}
12... Be6 {[%clk 0:02:35.9]} 13. Ng3 {[%clk 0:02:30.4]} 13... Rae8 {[%clk
0:02:34.7]} 14. Be3 {[%clk 0:02:11.3]} 14... Ng4 {[%clk 0:02:31.6]} 15. Bg5
{[%clk 0:01:56.3]} 15... Qf7 {[%clk 0:02:26.1]} 16. h3 {[%clk 0:01:42.4]} 16...
h6 {[%clk 0:01:57.5]} 17. Bd2 {[%clk 0:01:29.6]} 17... Nf6 {[%clk 0:01:26.7]}
18. Be3 {[%clk 0:01:25.5]} 18... Ne4 {[%clk 0:01:19.2]} 19. Nxe4 {[%clk
0:01:08.1]} 19... dxe4 {[%clk 0:01:19.8]} 20. Nd4 {[%clk 0:01:06.9]} 20... Nxd4
{[%clk 0:01:13.4]} 21. Qxd4 {[%clk 0:00:59.3]} 21... b6 {[%clk 0:00:57.1]} 22.
Qa4 {[%clk 0:00:42.5]} 22... Kh8 {[%clk 0:00:48.9]} 23. Bb5 {[%clk 0:00:35.5]}
23... Re7 {[%clk 0:00:41.8]} 24. b3 {[%clk 0:00:30.7]} 24... Qg6 {[%clk
0:00:41.3]} 25. Kh1 {[%clk 0:00:30]} 25... Bxh3 {[%clk 0:00:32.9]} 26. gxh3
{[%clk 0:00:30]} 26... Rf3 {[%clk 0:00:33.6]} 27. Bf1 {[%clk 0:00:29.8]} 27...
Qh5 {[%clk 0:00:25.3]} 28. Bg2 {[%clk 0:00:24.5]} 28... Rxh3+ {[%clk 0:00:25]}
29. Kg1 {[%clk 0:00:16.8]} 29... Rh2 {[%clk 0:00:15.4]} 30. Kf1 {[%clk
0:00:09.6]} 30... Qg4 {[%clk 0:00:15.1]} 31. Qc6 {[%clk 0:00:03.8]} 31... Rxg2
{[%clk 0:00:11.1]} 32. Qa8+ {[%clk 0:00:02.8]} 32... Kh7 {[%clk 0:00:11]} 0-1

[Event "Early-Titled-Tuesday-Blitz-September-05-2023"]
[Site "Chess.com"]
[Date "2023.09.05"]
[Round "10"]
[White "CraiggoryC"]
[Black "LUISMIGUELOV"]
[Result "1-0"]
[WhiteElo "2217"]
[BlackElo "2072"]
[TimeControl "180+1"]
[EndTime "9:54:23 PDT"]
[Termination "CraiggoryC won on time"]

1. e4 {[%clk 0:03:00.9]} 1... c6 {[%clk 0:02:59.2]} 2. d4 {[%clk 0:03:00.9]}
2... d5 {[%clk 0:02:59.8]} 3. e5 {[%clk 0:03:01.6]} 3... c5 {[%clk 0:02:59]} 4.
dxc5 {[%clk 0:03:01.2]} 4... Nc6 {[%clk 0:02:58.6]} 5. a3 {[%clk 0:02:55.1]}
5... Nxe5 {[%clk 0:02:50.7]} 6. Nf3 {[%clk 0:02:47.3]} 6... Nxf3+ {[%clk
0:02:47.9]} 7. Qxf3 {[%clk 0:02:48.2]} 7... e6 {[%clk 0:02:47.6]} 8. b4 {[%clk
0:02:47.9]} 8... a5 {[%clk 0:02:39.3]} 9. Bb2 {[%clk 0:02:46.8]} 9... axb4
{[%clk 0:02:36.4]} 10. axb4 {[%clk 0:02:47.7]} 10... Rxa1 {[%clk 0:02:36]} 11.
Bxa1 {[%clk 0:02:48.6]} 11... Nf6 {[%clk 0:02:34.6]} 12. Bd3 {[%clk 0:02:15.6]}
12... Be7 {[%clk 0:02:32.6]} 13. O-O {[%clk 0:02:15.3]} 13... O-O {[%clk
0:02:32]} 14. Nd2 {[%clk 0:02:03]} 14... Qc7 {[%clk 0:02:27.4]} 15. c4 {[%clk
0:01:40]} 15... b6 {[%clk 0:02:16.6]} 16. cxd5 {[%clk 0:01:06.4]} 16... bxc5
{[%clk 0:02:12.4]} 17. Ne4 {[%clk 0:00:57.1]} 17... Nxe4 {[%clk 0:01:40.7]} 18.
Qxe4 {[%clk 0:00:47.7]} 18... f5 {[%clk 0:01:36.2]} 19. Qf3 {[%clk 0:00:42.7]}
19... cxb4 {[%clk 0:01:28.7]} 20. dxe6 {[%clk 0:00:41.5]} 20... Bxe6 {[%clk
0:01:25.6]} 21. Re1 {[%clk 0:00:41.8]} 21... Qd6 {[%clk 0:01:14]} 22. Qe2 {[%clk
0:00:24.3]} 22... Re8 {[%clk 0:00:54.7]} 23. Qxe6+ {[%clk 0:00:20.6]} 23... Qxe6
{[%clk 0:00:52.3]} 24. Rxe6 {[%clk 0:00:21.5]} 24... Rd8 {[%clk 0:00:49.5]} 25.
Rxe7 {[%clk 0:00:18.8]} 25... Rxd3 {[%clk 0:00:49.2]} 26. Re1 {[%clk 0:00:17.4]}
26... b3 {[%clk 0:00:46.8]} 27. g3 {[%clk 0:00:16.6]} 27... f4 {[%clk
0:00:46.2]} 28. gxf4 {[%clk 0:00:16]} 28... Kf7 {[%clk 0:00:45.3]} 29. Kg2
{[%clk 0:00:15.9]} 29... g6 {[%clk 0:00:44.7]} 30. Be5 {[%clk 0:00:14.6]} 30...
Ke6 {[%clk 0:00:39.2]} 31. Re3 {[%clk 0:00:13.9]} 31... Rd1 {[%clk 0:00:10.6]}
32. Rxb3 {[%clk 0:00:13.5]} 32... g5 {[%clk 0:00:10.1]} 33. Rb6+ {[%clk
0:00:13.3]} 33... Kf5 {[%clk 0:00:07.7]} 34. Rf6+ {[%clk 0:00:13.2]} 34... Ke4
{[%clk 0:00:05.8]} 35. Re6 {[%clk 0:00:11.7]} 35... gxf4 {[%clk 0:00:04.7]} 36.
Bc7+ {[%clk 0:00:10.9]} 36... Kf5 {[%clk 0:00:03.5]} 37. Re7 {[%clk 0:00:10.2]}
37... h5 {[%clk 0:00:02.1]} 38. Rf7+ {[%clk 0:00:10.1]} 38... Kg4 {[%clk
0:00:01.8]} 39. Rxf4+ {[%clk 0:00:10.2]} 1-0

[Event "Early-Titled-Tuesday-Blitz-September-05-2023"]
[Site "Chess.com"]
[Date "2023.09.05"]
[Round "10"]
[White "Evgeny81"]
[Black "ChainedDowntohell"]
[Result "1-0"]
[WhiteElo "2744"]
[BlackElo "2578"]
[TimeControl "180+1"]
[EndTime "9:54:25 PDT"]
[Termination "Evgeny81 won on time"]

1. e4 {[%clk 0:02:51.9]} 1... c5 {[%clk 0:02:57]} 2. Nf3 {[%clk 0:02:51]} 2...
e6 {[%clk 0:02:54.7]} 3. d4 {[%clk 0:02:51.2]} 3... cxd4 {[%clk 0:02:54.4]} 4.
Nxd4 {[%clk 0:02:52.1]} 4... a6 {[%clk 0:02:54.3]} 5. Bd3 {[%clk 0:02:51]} 5...
Bc5 {[%clk 0:02:53.5]} 6. Nb3 {[%clk 0:02:51.1]} 6... Ba7 {[%clk 0:02:53.4]} 7.
Qg4 {[%clk 0:02:48.7]} 7... g6 {[%clk 0:02:53]} 8. Nc3 {[%clk 0:02:46.7]} 8...
Nc6 {[%clk 0:02:52.2]} 9. Qe2 {[%clk 0:02:41.9]} 9... b5 {[%clk 0:02:50.9]} 10.
Be3 {[%clk 0:02:40.2]} 10... Qc7 {[%clk 0:02:33.8]} 11. O-O-O {[%clk 0:02:34.2]}
11... Bxe3+ {[%clk 0:02:17.5]} 12. Qxe3 {[%clk 0:02:33.8]} 12... Nf6 {[%clk
0:02:17.7]} 13. f4 {[%clk 0:02:28.1]} 13... Nb4 {[%clk 0:02:09.9]} 14. Kb1
{[%clk 0:02:23.5]} 14... O-O {[%clk 0:02:06.4]} 15. h4 {[%clk 0:02:17.5]} 15...
h5 {[%clk 0:01:51.2]} 16. a3 {[%clk 0:02:09]} 16... Nxd3 {[%clk 0:01:37]} 17.
Rxd3 {[%clk 0:02:08.6]} 17... Bb7 {[%clk 0:01:27.3]} 18. Nc5 {[%clk 0:02:02.6]}
18... Bc6 {[%clk 0:01:24.6]} 19. Rhd1 {[%clk 0:01:53.3]} 19... Rfd8 {[%clk
0:01:02.9]} 20. e5 {[%clk 0:01:20.6]} 20... Nd5 {[%clk 0:01:02.2]} 21. Qg3
{[%clk 0:01:19.3]} 21... a5 {[%clk 0:00:52.6]} 22. N5e4 {[%clk 0:01:06.7]} 22...
Kg7 {[%clk 0:00:41.5]} 23. Nxd5 {[%clk 0:00:57.9]} 23... Bxd5 {[%clk 0:00:28]}
24. Nd6 {[%clk 0:00:55.2]} 24... b4 {[%clk 0:00:22.9]} 25. f5 {[%clk 0:00:49.3]}
25... bxa3 {[%clk 0:00:19]} 26. f6+ {[%clk 0:00:40.1]} 26... Kh7 {[%clk
0:00:11.3]} 27. Nxf7 {[%clk 0:00:31.4]} 27... Rdb8 {[%clk 0:00:10.7]} 28. Rxa3
{[%clk 0:00:27.1]} 28... Qc5 {[%clk 0:00:04.2]} 29. Qf4 {[%clk 0:00:18.3]} 29...
Rxb2+ {[%clk 0:00:02.1]} 30. Kxb2 {[%clk 0:00:13.7]} 30... Kg8 {[%clk
0:00:01.9]} 31. Qh6 {[%clk 0:00:04.6]} 31... Kxf7 {[%clk 0:00:01.6]} 32. Qg7+
{[%clk 0:00:04.2]} 1-0

[Event "Early-Titled-Tuesday-Blitz-September-05-2023"]
[Site "Chess.com"]
[Date "2023.09.05"]
[Round "10"]
[White "dosto07"]
[Black "Qvalda"]
[Result "1/2-1/2"]
[WhiteElo "2505"]
[BlackElo "2387"]
[TimeControl "180+1"]
[EndTime "9:54:31 PDT"]
[Termination "Game drawn by repetition"]

1. e4 {[%clk 0:03:00.9]} 1... e6 {[%clk 0:03:00]} 2. d4 {[%clk 0:03:00.7]} 2...
d5 {[%clk 0:02:59.7]} 3. Nd2 {[%clk 0:03:01.1]} 3... Be7 {[%clk 0:02:58.7]} 4.
Bd3 {[%clk 0:02:59.4]} 4... c5 {[%clk 0:02:56]} 5. dxc5 {[%clk 0:02:58.2]} 5...
Bxc5 {[%clk 0:02:46.2]} 6. Ngf3 {[%clk 0:02:56.9]} 6... Nf6 {[%clk 0:02:45.1]}
7. Qe2 {[%clk 0:02:57]} 7... O-O {[%clk 0:02:32.3]} 8. O-O {[%clk 0:02:56]} 8...
Nc6 {[%clk 0:02:28.2]} 9. e5 {[%clk 0:02:45.5]} 9... Nd7 {[%clk 0:02:23.5]} 10.
Nb3 {[%clk 0:02:45.2]} 10... Be7 {[%clk 0:02:20.9]} 11. Bf4 {[%clk 0:02:40.5]}
11... h6 {[%clk 0:02:14]} 12. Rfe1 {[%clk 0:02:27.8]} 12... Re8 {[%clk
0:02:09.6]} 13. Rad1 {[%clk 0:02:25.5]} 13... Nc5 {[%clk 0:02:05.3]} 14. Nxc5
{[%clk 0:02:24.7]} 14... Bxc5 {[%clk 0:02:06.2]} 15. c3 {[%clk 0:02:23.8]} 15...
Rb8 {[%clk 0:02:01.2]} 16. Bb1 {[%clk 0:02:22.5]} 16... Ne7 {[%clk 0:01:53.9]}
17. Bg3 {[%clk 0:02:14.6]} 17... Nf5 {[%clk 0:01:35]} 18. Bxf5 {[%clk
0:02:04.2]} 18... exf5 {[%clk 0:01:35.9]} 19. e6 {[%clk 0:02:03.9]} 19... Bxe6
{[%clk 0:01:26]} 20. Bxb8 {[%clk 0:02:02.7]} 20... Qxb8 {[%clk 0:01:26.9]} 21.
Nd4 {[%clk 0:01:56.9]} 21... Bxd4 {[%clk 0:01:17.2]} 22. Rxd4 {[%clk 0:01:56.5]}
22... b5 {[%clk 0:01:14.2]} 23. Qd2 {[%clk 0:01:54.7]} 23... a5 {[%clk
0:01:07.6]} 24. h3 {[%clk 0:01:50.4]} 24... Rc8 {[%clk 0:01:04.2]} 25. a4 {[%clk
0:01:42.2]} 25... Rc4 {[%clk 0:00:50.5]} 26. Ra1 {[%clk 0:01:30.9]} 26... bxa4
{[%clk 0:00:36.2]} 27. Rxc4 {[%clk 0:01:22]} 27... dxc4 {[%clk 0:00:37.1]} 28.
Rxa4 {[%clk 0:01:21.6]} 28... Qe5 {[%clk 0:00:36]} 29. Ra1 {[%clk 0:00:55.3]}
29... f4 {[%clk 0:00:35.8]} 30. Re1 {[%clk 0:00:53.1]} 30... Qg5 {[%clk
0:00:33.9]} 31. g3 {[%clk 0:00:41.6]} 31... fxg3 {[%clk 0:00:14.9]} 32. Qxg5
{[%clk 0:00:41.4]} 32... gxf2+ {[%clk 0:00:15.8]} 33. Kxf2 {[%clk 0:00:41.6]}
33... hxg5 {[%clk 0:00:16.7]} 34. Kg3 {[%clk 0:00:38]} 34... a4 {[%clk
0:00:08.4]} 35. Re5 {[%clk 0:00:37.6]} 35... g6 {[%clk 0:00:05.8]} 36. Rxg5
{[%clk 0:00:36.1]} 36... Bf5 {[%clk 0:00:05.6]} 37. Kh2 {[%clk 0:00:27.2]} 37...
Bc2 {[%clk 0:00:04.9]} 38. Rc5 {[%clk 0:00:26]} 38... Bb3 {[%clk 0:00:04.5]} 39.
Kg3 {[%clk 0:00:25.5]} 39... Kg7 {[%clk 0:00:04.8]} 40. Rc6 {[%clk 0:00:25.6]}
40... Kh7 {[%clk 0:00:04.4]} 41. h4 {[%clk 0:00:25.7]} 41... Kg7 {[%clk
0:00:04.7]} 42. Kf4 {[%clk 0:00:25.7]} 42... Ba2 {[%clk 0:00:04.8]} 43. Kg5
{[%clk 0:00:24.5]} 43... Bb3 {[%clk 0:00:03.8]} 44. Ra6 {[%clk 0:00:24]} 44...
Bc2 {[%clk 0:00:03.4]} 45. Rc6 {[%clk 0:00:21.8]} 45... Bb3 {[%clk 0:00:03.6]}
46. Ra6 {[%clk 0:00:20.5]} 46... Bc2 {[%clk 0:00:03.8]} 47. Kf4 {[%clk
0:00:19.6]} 47... Bb3 {[%clk 0:00:03.3]} 48. Kg5 {[%clk 0:00:15.2]} 1/2-1/2